bitfinex/quotes_SOLUSD_20240705
["timestamp","ask_amount","ask_price","bid_price","bid_amount"]
[1720152316294,21.2344,124.28,124.25,8.0476]
[1720152316500,21.2344,124.28,124.24,8.0487]
[1720152316702,0.1,124.29,124.23,20.2931]
[1720152316917,0.1,124.29,124.24,0.17]
[1720152317796,0.1,124.29,124.24,20.17]
[1720152318109,0.1,124.29,124.24,28.2188]
[1720152318410,0.1,124.29,124.24,20.17]
[1720152319496,0.1,124.29,124.26,8.0475]
[1720152319693,0.1,124.29,124.27,0.17]
[1720152320310,0.1,124.29,124.26,0.17]
[1720152320505,0.1,124.29,124.24,20.0]
[1720152320708,0.1,124.29,124.23,20.0]
[1720152320889,0.1,124.29,124.2,8.0515]
[1720152321083,0.1,124.29,124.21,8.0507]
[1720152321315,0.1,124.29,124.22,8.05]
[1720152321700,0.1,124.29,124.21,20.1262]
[1720152321902,0.1,124.29,124.21,28.1764]
[1720152322093,0.1,124.29,124.22,8.0498]
[1720152322289,0.1,124.29,124.23,0.17]
[1720152322818,0.1,124.29,124.22,0.17]
[1720152322991,0.1,124.29,124.23,20.1227]
[1720152323195,0.1,124.29,124.24,0.17]
[1720152324495,0.1,124.29,124.24,8.2187]
[1720152324691,6.2213,124.33,124.28,8.0463]
[1720152324909,6.2213,124.33,124.3,8.0449]
[1720152325115,6.2213,124.33,124.31,0.17]
[1720152325621,6.2213,124.33,124.29,20.2835]
[1720152326219,15.5973,124.36,124.29,28.3291]
[1720152326508,15.5973,124.36,124.31,28.1544]
[1720152326807,15.5973,124.36,124.29,0.17]
[1720152327000,15.5973,124.36,124.29,20.17]
[1720152327789,15.5973,124.36,124.3,20.1119]
[1720152327992,6.0679,124.37,124.32,8.0437]
[1720152328188,6.0679,124.37,124.33,0.17]
[1720152328407,6.0679,124.37,124.31,20.17]
[1720152328599,6.0679,124.37,124.31,0.17]
[1720152328793,6.0679,124.37,124.3,0.17]
[1720152329000,6.0679,124.37,124.3,8.215]
[1720152329320,6.0679,124.37,124.31,20.0]
[1720152329621,6.0679,124.37,124.32,0.17]
[1720152330115,6.0679,124.37,124.32,8.2136]
[1720152331418,0.1,124.39,124.36,8.0411]
[1720152331608,0.1,124.39,124.37,8.2104]
[1720152332092,0.1,124.39,124.37,0.17]
[1720152332291,0.1,124.39,124.37,28.3111]
[1720152332509,0.1,124.39,124.37,20.2708]
[1720152332715,0.1,124.39,124.37,28.3108]
[1720152332902,0.1,124.39,124.38,8.0398]
[1720152333104,6.358244,124.42,124.39,8.0392]
[1720152333309,0.211344,124.42,124.4,0.17]
[1720152333500,0.211344,124.42,124.39,20.0973]
[1720152333899,0.211344,124.42,124.4,0.17]
[1720152334316,0.211344,124.42,124.39,20.0973]
[1720152334796,0.211344,124.42,124.41,8.0379]
[1720152334997,0.0477996,124.46,124.44,20.0885]
[1720152335629,0.0477996,124.46,124.41,48.3024]
[1720152335801,0.0477996,124.46,124.42,8.037]
[1720152336001,0.0477996,124.46,124.41,20.2645]
[1720152336207,0.0477996,124.46,124.41,0.17]
[1720152336411,0.0477996,124.46,124.44,8.0358]
[1720152336739,0.0477996,124.46,124.43,20.0904]
[1720152336904,0.0477996,124.46,124.43,28.127]
[1720152337111,0.0477996,124.46,124.44,0.17]
[1720152337331,0.0477996,124.46,124.43,20.0904]
[1720152337714,0.0477996,124.46,124.43,28.1269]
[1720152338327,0.0477996,124.46,124.34,14.332]
[1720152338529,0.0477996,124.46,124.39,8.039]
[1720152338704,0.0477996,124.46,124.37,40.1011]
[1720152338705,0.0477996,124.46,124.43,8.0365]
[1720152338905,0.0477996,124.46,124.44,8.0358]
[1720152339113,0.0477996,124.46,124.37,120.0]
[1720152339309,0.0477996,124.46,124.4,20.0956]
[1720152339520,0.0477996,124.46,124.37,40.1006]
[1720152339735,0.0477996,124.46,124.4,8.0382]
[1720152339909,0.0477996,124.46,124.4,40.1926]
[1720152340112,0.0477996,124.46,124.42,8.0367]
[1720152340431,0.0477996,124.46,124.44,8.0358]
[1720152340620,0.0477996,124.46,124.43,28.1268]
[1720152341018,0.0477996,124.46,124.4,20.0956]
[1720152341224,0.0477996,124.46,124.4,28.1336]
[1720152341426,0.0477996,124.46,124.4,28.1339]
[1720152341620,0.0477996,124.46,124.42,8.0372]
[1720152341817,0.0477996,124.46,124.45,8.0353]
[1720152342147,0.0477996,124.46,124.42,8.0371]
[1720152343013,0.0477996,124.46,124.41,20.2642]
[1720152343014,0.0477996,124.46,124.43,8.0365]
[1720152343617,0.0477996,124.46,124.41,20.2642]
[1720152343818,0.0477996,124.46,124.42,8.2072]
[1720152344027,0.0477996,124.46,124.43,20.0907]
[1720152344217,0.1,124.49,124.48,28.1169]
[1720152344429,6.1532,124.55,124.48,20.2535]
[1720152344637,6.1532,124.55,124.5,8.0319]
[1720152344828,6.1532,124.55,124.51,0.17]
[1720152345029,6.1532,124.55,124.5,8.032]
[1720152345234,6.1532,124.55,124.49,0.17]
[1720152345640,6.1532,124.55,124.48,20.0835]
[1720152345941,6.1532,124.55,124.44,58.58]
[1720152346240,16.3914,124.56,124.44,58.58]
[1720152346241,0.1,124.59,124.45,20.0]
[1720152346441,0.1,124.59,124.46,100.0]
[1720152346745,0.1,124.59,124.47,21.85848237]
[1720152347046,0.1,124.59,124.54,8.0293]
[1720152347212,0.1,124.59,124.52,20.0764]
[1720152347412,0.1,124.59,124.53,0.17]
[1720152348341,8.1268,124.59,124.48,9.89153307]
[1720152348548,24.31,124.59,124.48,20.0823]
[1720152348727,24.31,124.59,124.49,8.0326]
[1720152349050,24.31,124.59,124.45,28.1231]
[1720152349051,8.0287,124.56,124.45,28.1231]
[1720152349350,22.971,124.58,124.45,20.0879]
[1720152349644,47.181,124.58,124.47,20.0843]
[1720152349857,47.181,124.58,124.47,28.1177]
[1720152350144,47.181,124.58,124.48,8.0331]
[1720152350453,24.21,124.56,124.46,8.0344]
[1720152350622,24.21,124.56,124.44,20.089]
[1720152350817,24.21,124.56,124.46,20.0854]
[1720152351149,18.67031727,124.58,124.43,34.52480331]
[1720152351351,8.0301,124.54,124.43,34.52480331]
[1720152351545,8.029,124.55,124.44,8.0359]
[1720152351745,8.0283,124.56,124.44,8.0359]
[1720152352072,8.0283,124.56,124.4,100.0]
[1720152352073,24.21,124.52,124.4,20.0955]
[1720152352371,24.21,124.52,124.41,8.0374]
[1720152352670,16.3698,124.53,124.43,8.0361]
[1720152353069,24.21,124.52,124.42,28.1293]
[1720152353676,16.3698,124.53,124.43,8.0364]
[1720152354050,30.5552,124.51,124.42,28.1293]
[1720152354761,6.3452,124.51,124.42,20.0921]
[1720152354954,6.3452,124.51,124.45,8.0353]
[1720152355669,6.3452,124.51,124.44,20.0893]
[1720152355864,6.3452,124.51,124.46,8.0341]
[1720152356050,16.3698,124.53,124.47,0.17]
[1720152356458,16.3698,124.53,124.46,28.1203]
[1720152356760,16.3698,124.53,124.47,0.17]
[1720152357868,16.3698,124.53,124.48,20.0828]
[1720152358047,6.3816,124.55,124.5,8.032]
[1720152358474,0.1,124.59,124.51,8.2011]
[1720152358886,0.1,124.59,124.52,20.0761]
[1720152359060,0.1,124.59,124.53,0.17]
[1720152359469,0.1,124.59,124.52,20.0761]
[1720152359683,0.1,124.59,124.53,8.2001]
[1720152359974,0.1,124.59,124.53,0.17]
[1720152361454,0.1,124.59,124.53,8.1998]
[1720152361872,0.1,124.59,124.53,0.17]
[1720152362287,0.1,124.59,124.52,28.2003]
[1720152362584,0.1,124.59,124.52,20.0]
[1720152362883,0.1,124.59,124.49,8.0326]
[1720152362884,24.31,124.59,124.49,8.0326]
[1720152363066,24.31,124.59,124.5,20.0]
[1720152363262,24.31,124.59,124.48,34.36305303]
[1720152363595,24.31,124.59,124.49,8.0325]
[1720152363876,24.21,124.58,124.48,34.36315303]
[1720152364073,24.21,124.58,124.45,50.5]
[1720152364273,24.21,124.58,124.49,8.0322]
[1720152364677,0.80327738,124.5,124.49,8.0325]
[1720152364863,0.80327738,124.5,124.44,20.0889]
[1720152365178,0.80327738,124.5,124.41,20.0941]
[1720152365686,0.80327738,124.5,124.42,8.0368]
[1720152365877,0.80327738,124.5,124.45,8.0352]
[1720152366222,0.80327738,124.5,124.43,28.1269]
[1720152366571,6.1367,124.59,124.48,6.3184]
[1720152366771,14.1636,124.59,124.47,20.0837]
[1720152366990,6.1367,124.59,124.47,20.0837]
[1720152367179,8.027,124.58,124.47,20.0837]
[1720152367390,8.027,124.58,124.44,20.0894]
[1720152367567,24.21,124.57,124.45,0.17]
[1720152367774,24.21,124.56,124.47,8.0335]
[1720152368085,14.1631,124.59,124.46,20.086]
[1720152368086,45.415,124.55,124.46,20.086]
[1720152368392,21.205,124.55,124.46,20.086]
[1720152368571,24.21,124.54,124.43,70.5909]
[1720152368772,24.21,124.54,124.44,8.0359]
[1720152369006,24.21,124.54,124.45,20.0876]
[1720152369179,24.21,124.54,124.46,8.0342]
[1720152370085,24.21,124.54,124.47,8.034]
[1720152370294,24.21,124.54,124.45,20.2576]
[1720152370599,24.21,124.54,124.42,20.0925]
[1720152370902,24.21,124.49,124.41,14.31084338]
[1720152371108,15.4187,124.5,124.41,6.27304338]
[1720152371109,39.6287,124.5,124.41,6.27304338]
[1720152371289,39.6287,124.5,124.41,26.36704338]
[1720152371472,39.6287,124.5,124.43,8.0365]
[1720152371997,39.6287,124.5,124.41,28.1318]
[1720152372301,15.4187,124.5,124.42,0.17]
[1720152372806,15.4187,124.5,124.41,20.094]
[1720152373170,39.6287,124.5,124.41,20.094]
[1720152373494,39.6287,124.5,124.42,20.0]
[1720152373874,39.6287,124.5,124.41,28.1317]
[1720152374091,15.4187,124.5,124.42,0.17]
[1720152374482,39.6287,124.5,124.42,0.17]
[1720152374803,39.6287,124.5,124.4,8.0384]
[1720152375004,47.6609,124.5,124.41,0.17]
[1720152375202,39.6287,124.5,124.39,28.039]
[1720152375380,47.661,124.5,124.39,28.0392]
[1720152375576,30.5919,124.48,124.37,8.38661885]
[1720152375811,32.2446,124.47,124.35,20.1041]
[1720152375986,45.6818,124.44,124.33,8.38509333]
[1720152376182,24.21,124.43,124.32,20.1086]
[1720152376376,24.21,124.43,124.32,28.1523]
[1720152376718,32.2472,124.43,124.32,20.1086]
[1720152376903,24.21,124.43,124.32,28.1518]
[1720152377204,32.2468,124.43,124.32,20.1086]
[1720152377425,24.21,124.41,124.3,8.38512087]
[1720152377578,30.5094,124.4,124.3,8.38512087]
[1720152377780,30.5094,124.4,124.3,8.0449]
[1720152378192,6.2994,124.4,124.32,8.0432]
[1720152378479,6.2994,124.4,124.31,20.11]
[1720152378480,30.5094,124.4,124.31,20.11]
[1720152378705,30.5094,124.4,124.31,28.1543]
[1720152378987,6.2994,124.4,124.31,20.11]
[1720152379209,6.2994,124.4,124.33,8.0425]
[1720152379384,30.5094,124.4,124.32,8.0436]
[1720152379891,30.5094,124.4,124.31,20.28]
[1720152380090,30.5094,124.4,124.32,20.17]
[1720152380301,30.5094,124.4,124.32,20.0]
[1720152380497,24.21,124.39,124.28,6.23638141]
[1720152380701,24.21,124.39,124.27,283.80189594]
[1720152381018,6.2994,124.4,124.27,265.54726935]
[1720152381019,30.5094,124.4,124.27,265.54726935]
[1720152381201,38.5482,124.4,124.29,8.0456]
[1720152381521,24.21,124.38,124.28,28.1613]
[1720152382433,24.21,124.38,124.29,8.0453]
[1720152382726,24.21,124.38,124.29,8.0456]
[1720152382937,24.21,124.38,124.28,20.1152]
[1720152382938,24.21,124.38,124.28,28.1612]
[1720152383098,24.21,124.36,124.25,20.1201]
[1720152383431,24.21,124.36,124.26,8.0475]
[1720152383794,24.21,124.36,124.23,99.13690023]
[1720152384025,24.21,124.36,124.27,28.1632]
[1720152384321,24.21,124.36,124.28,8.0463]
[1720152384619,6.2841,124.37,124.3,8.0448]
[1720152384824,16.4794,124.39,124.29,50.5]
[1720152385029,16.4794,124.39,124.33,20.1067]
[1720152385214,6.2117,124.42,124.34,20.17]
[1720152385398,6.2117,124.42,124.34,28.2119]
[1720152385604,6.2117,124.42,124.34,20.17]
[1720152385908,24.21,124.4,124.3,28.1565]
[1720152386092,6.2117,124.42,124.32,20.1087]
[1720152386311,6.2117,124.42,124.31,20.0]
[1720152386508,6.2117,124.42,124.32,8.0435]
[1720152386705,30.4217,124.42,124.3,20.0]
[1720152387016,6.2117,124.42,124.35,8.0417]
[1720152387237,6.2117,124.42,124.35,8.0416]
[1720152387416,6.2117,124.42,124.35,20.1038]
[1720152387739,6.2117,124.42,124.36,0.17]
[1720152388143,6.2117,124.42,124.37,8.0405]
[1720152388346,6.2117,124.42,124.36,0.17]
[1720152388647,15.8897,124.43,124.4,8.0384]
[1720152388816,15.8897,124.43,124.38,20.0988]
[1720152388817,6.1108,124.46,124.39,8.209]
[1720152389518,6.1108,124.46,124.39,0.17]
[1720152389738,6.1108,124.46,124.39,20.0]
[1720152389739,30.3208,124.46,124.39,20.0]
[1720152390239,30.3208,124.46,124.35,20.1037]
[1720152390548,30.3208,124.46,124.36,0.17]
[1720152390748,6.1108,124.46,124.39,8.0386]
[1720152391361,6.1108,124.46,124.4,8.2085]
[1720152391537,6.1108,124.46,124.41,20.0934]
[1720152392045,6.1108,124.46,124.39,8.0391]
[1720152392213,6.1108,124.46,124.4,20.0]
[1720152392413,30.3208,124.46,124.4,20.0]
[1720152392818,30.3208,124.46,124.37,28.0403]
[1720152393249,6.1108,124.46,124.37,40.1001]
[1720152393613,6.1108,124.46,124.39,8.0391]
[1720152394017,6.1108,124.46,124.37,48.14]
[1720152394214,30.3208,124.46,124.37,48.14]
[1720152394517,6.1108,124.46,124.37,48.1404]
[1720152394848,0.17,124.45,124.33,20.1063]
[1720152395017,21.5357,124.44,124.33,20.1063]
[1720152395345,24.21,124.43,124.33,34.61962217]
[1720152395847,24.21,124.43,124.3,20.1119]
[1720152395848,24.21,124.4,124.3,20.1119]
[1720152396035,15.488,124.39,124.31,8.0441]
[1720152396245,24.21,124.38,124.3,20.1119]
[1720152396442,24.21,124.38,124.28,8.37960279]
[1720152396647,24.21,124.38,124.28,16.42580279]
[1720152397222,30.2577,124.37,124.28,8.37960279]
[1720152397530,30.2577,124.37,124.28,8.0461]
[1720152397859,30.2577,124.37,124.26,20.1182]
[1720152398030,30.2577,124.37,124.24,310.57585945]
[1720152398031,30.2577,124.37,124.3,8.0445]
[1720152398232,30.2577,124.37,124.31,28.1546]
[1720152398233,6.0477,124.37,124.31,28.1546]
[1720152398437,6.0477,124.37,124.31,20.1103]
[1720152398752,30.2577,124.37,124.29,8.0455]
[1720152398954,6.0477,124.37,124.3,20.1117]
[1720152399159,6.0477,124.37,124.27,50.5]
[1720152399160,6.0477,124.37,124.31,0.17]
[1720152399662,6.0477,124.37,124.31,20.17]
[1720152399992,15.488,124.39,124.37,8.0405]
[1720152400137,6.3109,124.42,124.37,8.0399]
[1720152400346,6.3109,124.42,124.36,8.2105]
[1720152400657,6.3109,124.42,124.36,28.2111]
[1720152401026,6.3109,124.42,124.36,8.2111]
[1720152401236,6.3109,124.42,124.37,8.0404]
[1720152401441,6.3109,124.42,124.34,20.1054]
[1720152401656,6.3109,124.42,124.32,50.5]
[1720152401657,6.3109,124.42,124.35,20.0]
[1720152401862,6.3109,124.42,124.36,0.17]
[1720152402060,6.3109,124.42,124.37,20.1002]
[1720152402446,6.3109,124.42,124.37,28.1404]
[1720152402673,6.3109,124.42,124.37,20.1002]
[1720152403844,6.3109,124.42,124.36,0.17]
[1720152404265,6.3109,124.42,124.37,8.0405]
[1720152404658,0.80405243,124.39,124.37,8.0405]
[1720152405378,0.80405243,124.39,124.36,20.2721]
[1720152405379,6.6057,124.47,124.39,8.0389]
[1720152405548,6.6057,124.47,124.38,20.2688]
[1720152405549,22.6161,124.47,124.41,8.0377]
[1720152405755,22.6161,124.47,124.4,48.3038]
[1720152405948,46.8261,124.47,124.37,20.1008]
[1720152406155,46.8261,124.47,124.35,8.0413]
[1720152406454,54.8603,124.47,124.36,20.17]
[1720152406663,54.8603,124.47,124.36,28.211]
[1720152406853,24.21,124.45,124.36,20.17]
[1720152407493,24.21,124.45,124.36,0.17]
[1720152407783,24.21,124.44,124.37,8.0403]
[1720152407951,24.21,124.44,124.36,20.2719]
[1720152407952,24.21,124.44,124.36,28.3129]
[1720152408146,24.21,124.44,124.33,275.4075]
[1720152408360,24.21,124.46,124.31,430.3191]
[1720152408577,24.21,124.46,124.36,8.041]
[1720152409244,24.21,124.46,124.36,8.0409]
[1720152410058,24.21,124.46,124.37,8.0403]
[1720152410256,22.6161,124.47,124.35,0.17]
[1720152410457,22.6161,124.47,124.38,0.17]
[1720152410764,22.6161,124.47,124.39,28.1363]
[1720152410977,22.6161,124.47,124.39,20.0973]
[1720152411290,22.6161,124.47,124.37,8.0399]
[1720152411291,46.8261,124.47,124.37,8.0399]
[1720152411464,46.8261,124.47,124.38,20.0]
[1720152411865,22.6161,124.47,124.4,20.0958]
[1720152412087,22.6161,124.47,124.42,8.0372]
[1720152412390,22.6161,124.47,124.43,8.0361]
[1720152412902,22.6161,124.47,124.42,28.1296]
[1720152413395,22.6161,124.47,124.42,20.0925]
[1720152413690,22.6161,124.47,124.41,8.2077]
[1720152414075,22.6161,124.47,124.42,8.0372]
[1720152415001,16.601,124.51,124.43,20.0]
[1720152415185,22.7477,124.51,124.44,0.17]
[1720152415476,22.7477,124.51,124.43,40.0907]
[1720152416290,22.7477,124.51,124.43,20.0]
[1720152416499,46.9577,124.51,124.42,8.207]
[1720152416668,46.9577,124.51,124.43,20.17]
[1720152417004,46.9577,124.51,124.41,28.1318]
[1720152417180,46.9577,124.51,124.42,28.2071]
[1720152417491,22.7477,124.51,124.43,20.0902]
[1720152417690,22.7477,124.51,124.44,0.17]
[1720152417862,22.7477,124.51,124.44,20.17]
[1720152418059,22.7477,124.51,124.44,28.2058]
[1720152418278,22.7477,124.51,124.44,20.17]
[1720152418769,22.7477,124.51,124.44,28.2059]
[1720152418974,22.7477,124.51,124.44,20.17]
[1720152419196,22.7477,124.51,124.44,28.2059]
[1720152419396,22.7477,124.51,124.45,20.0872]
[1720152419586,22.7477,124.51,124.44,20.17]
[1720152420378,22.7477,124.51,124.44,0.17]
[1720152420681,22.7477,124.51,124.44,20.2595]
[1720152420887,22.7477,124.51,124.46,20.0863]
[1720152421091,22.7477,124.51,124.44,0.17]
[1720152421417,22.7477,124.51,124.45,28.1227]
[1720152421588,46.9577,124.51,124.43,20.0]
[1720152421775,46.9577,124.51,124.42,20.0928]
[1720152421975,22.7477,124.51,124.42,20.0928]
[1720152422170,22.7477,124.51,124.43,8.0365]
[1720152422473,22.7477,124.51,124.44,20.0892]
[1720152422709,22.7477,124.51,124.44,28.1246]
[1720152422871,22.7477,124.51,124.45,0.17]
[1720152423276,22.7477,124.51,124.44,28.1246]
[1720152423277,46.9577,124.51,124.41,20.0938]
[1720152423479,54.9894,124.51,124.42,20.0]
[1720152423675,54.9894,124.51,124.33,429.16964189]
[1720152423676,24.21,124.48,124.33,429.16964189]
[1720152423880,24.21,124.46,124.33,471.89973003]
[1720152424111,15.5638,124.45,124.34,40.2091]
[1720152424285,39.7738,124.45,124.33,455.42463003]
[1720152424606,39.7738,124.45,124.36,20.1021]
[1720152425104,39.7738,124.45,124.34,8.0422]
[1720152425397,39.7738,124.45,124.3,279.8551]
[1720152425398,24.21,124.4,124.3,283.4573]
[1720152425599,24.21,124.4,124.3,20.1126]
[1720152425782,24.21,124.38,124.27,28.1631]
[1720152425981,24.21,124.38,124.28,8.0462]
[1720152426182,24.21,124.38,124.27,28.1636]
[1720152426412,0.17,124.37,124.27,28.1636]
[1720152427100,40.0956,124.36,124.27,28.1636]
[1720152427312,40.0956,124.36,124.27,28.1635]
[1720152427684,40.0956,124.36,124.28,8.0463]
[1720152428212,40.0956,124.36,124.27,20.1167]
[1720152429079,40.0956,124.36,124.27,28.1635]
[1720152429789,48.1368,124.36,124.24,14.34573237]
[1720152429973,40.0956,124.36,124.25,8.2181]
[1720152430178,40.0956,124.36,124.26,8.0475]
[1720152430887,24.21,124.33,124.25,20.1197]
[1720152431205,30.5282,124.34,124.26,8.0475]
[1720152431399,6.3182,124.34,124.27,20.1164]
[1720152431580,6.3182,124.34,124.27,28.1628]
[1720152431781,6.3182,124.34,124.27,20.1164]
[1720152432076,6.3182,124.34,124.28,8.0461]
[1720152432693,6.3182,124.34,124.27,20.2864]
[1720152433003,6.3182,124.34,124.32,8.0435]
[1720152433208,6.3182,124.34,124.28,20.17]
[1720152433209,6.3182,124.34,124.31,20.11]
[1720152433576,6.3182,124.34,124.27,58.5463]
[1720152433783,6.3182,124.34,124.25,8.0479]
[1720152433784,30.5282,124.34,124.25,8.0479]
[1720152434105,30.5282,124.34,124.26,20.0]
[1720152434288,30.5282,124.34,124.23,6.39581761]
[1720152434478,32.2542,124.32,124.23,6.39581761]
[1720152434675,24.21,124.32,124.22,16.40289137]
[1720152434890,24.21,124.3,124.22,8.35279137]
[1720152435202,24.21,124.3,124.21,0.1]
[1720152435606,24.21,124.3,124.21,8.1506]
[1720152435787,24.21,124.28,124.21,0.1]
[1720152436287,32.2565,124.28,124.21,0.1]
[1720152436495,8.0472,124.27,124.21,0.1]
[1720152436685,8.0471,124.27,124.21,0.1]
[1720152436883,24.21,124.28,124.21,0.1]
[1720152436884,32.2563,124.28,124.21,0.1]
[1720152437085,32.427,124.27,124.21,0.1]
[1720152437417,6.5893,124.29,124.21,0.1]
[1720152438311,8.0485,124.25,124.21,0.1]
[1720152438494,24.21,124.26,124.21,0.1]
[1720152439107,0.17,124.25,124.21,0.1]
[1720152440105,6.5893,124.29,124.21,0.1]
[1720152440307,0.17,124.28,124.21,0.1]
[1720152440687,8.0507,124.22,124.1,8.0579]
[1720152440920,0.17,124.23,124.1,8.0579]
[1720152441088,6.5363,124.2,124.09,8.0586]
[1720152441818,47.2748,124.2,124.09,20.1459]
[1720152442416,47.2748,124.2,124.08,6.45405586]
[1720152442603,8.0539,124.17,124.08,6.45405586]
[1720152442920,32.2656,124.14,124.03,20.1557]
[1720152443119,0.17,124.13,124.03,20.1557]
[1720152443492,30.538,124.12,124.01,6.43372048]
[1720152443698,40.2854,124.11,124.01,0.1]
[1720152444022,48.3427,124.11,124.01,0.1]
[1720152444194,32.2684,124.1,124.01,0.1]
[1720152444394,0.17,124.09,124.01,0.1]
[1720152444801,0.80638659,124.03,124.01,0.1]
[1720152445422,0.80638659,124.03,124.02,8.0632]
[1720152445791,0.80638659,124.03,124.01,28.3223]
[1720152446422,0.80638659,124.03,124.01,0.1]
[1720152449595,0.80638659,124.03,124.02,8.0632]
[1720152451425,15.9054,124.11,124.07,8.0594]
[1720152451635,6.328,124.12,124.06,28.2113]
[1720152451915,15.3498,124.15,124.06,28.2108]
[1720152452418,15.3498,124.15,124.06,28.2114]
[1720152452920,15.3498,124.15,124.07,20.0]
[1720152453230,15.3498,124.15,124.06,28.2114]
[1720152453231,47.6145,124.15,124.03,28.2183]
[1720152453408,24.21,124.13,124.04,20.0]
[1720152453593,24.21,124.13,124.02,20.0]
[1720152453792,32.2667,124.12,124.01,8.1636]
[1720152453996,24.21,124.1,124.01,0.1]
[1720152454216,24.21,124.05,124.01,0.1]
[1720152454399,24.38,124.04,124.01,0.1]
[1720152454602,39.5105,124.03,124.01,0.1]
[1720152454910,6.278,124.02,123.91,8.1698]
[1720152455112,6.278,124.02,123.92,8.0695]
[1720152455427,6.278,124.02,123.93,8.0689]
[1720152455721,6.278,124.02,123.92,28.243]
[1720152455890,6.108,124.02,123.92,20.1733]
[1720152456096,15.3005,124.03,123.95,8.0671]
[1720152456351,15.3005,124.03,123.94,20.1703]
[1720152456548,23.3631,124.03,123.92,8.0696]
[1720152456833,0.17,124.02,123.92,8.0696]
[1720152457006,24.38,124.02,123.92,8.0696]
[1720152457207,24.38,124.02,123.91,90.1959]
[1720152457612,24.38,124.02,123.91,28.3459]
[1720152458321,24.38,124.02,123.91,0.1]
[1720152458709,24.21,124.0,123.91,0.1]
[1720152458916,0.17,123.99,123.91,0.1]
[1720152459431,24.21,124.0,123.91,8.1699]
[1720152459624,24.21,124.0,123.91,0.1]
[1720152459816,0.17,123.99,123.91,0.1]
[1720152460045,32.2733,124.02,123.91,0.1]
[1720152460324,24.21,124.0,123.91,0.1]
[1720152460521,0.17,123.99,123.91,0.1]
[1720152460835,24.21,124.0,123.91,0.1]
[1720152461149,24.21,124.02,123.92,8.069]
[1720152461306,32.2733,124.02,123.91,40.2749]
[1720152461817,24.21,123.99,123.91,20.1]
[1720152462025,24.21,123.99,123.91,0.1]
[1720152462409,24.21,123.99,123.91,8.1702]
[1720152462606,24.21,124.0,123.91,0.1]
[1720152462805,15.3005,124.03,123.96,8.0665]
[1720152463107,15.3005,124.03,123.95,8.0673]
[1720152463331,15.3005,124.03,123.94,28.2381]
[1720152463529,8.0632,124.02,123.91,28.3448]
[1720152463746,32.2738,124.02,123.92,20.17]
[1720152463943,32.2738,124.02,123.92,20.0]
[1720152464143,24.21,124.02,123.93,20.1719]
[1720152464322,24.21,124.02,123.94,8.0682]
[1720152464526,24.21,124.02,123.95,28.0673]
[1720152464845,0.80677693,123.97,123.95,28.0673]
[1720152465248,0.80677693,123.97,123.95,20.0]
[1720152466050,0.80677693,123.97,123.91,6.42968651]
[1720152466220,0.80677693,123.97,123.92,8.0695]
[1720152466423,0.80677693,123.97,123.91,6.42968651]